fUSD/lending_fUSD_20250923
["ID","MTS","AMOUNT","RATE_DAILY","PERIOD"]
[387168891,1758603051285,-400.0,0.00019999,2]
[387168892,1758603051294,-400.0,0.00019999,2]
[387168893,1758603051303,-400.0,0.00019999,2]
[387168894,1758603051312,-400.0,0.00019999,2]
[387168895,1758603051321,-400.0,0.00019999,2]
[387168896,1758603051331,-526.98,0.00019999,2]
[387168897,1758603051340,-400.0,0.00019999,2]
[387168898,1758603051350,-400.0,0.00019999,2]
[387168899,1758603051359,-400.0,0.00019999,2]
[387168900,1758603051368,-400.0,0.00019999,2]
[387168901,1758603051377,-400.0,0.00019999,2]
[387168902,1758603051387,-400.0,0.00019999,2]
[387168903,1758603051396,-400.0,0.00019999,2]
[387168904,1758603051405,-400.0,0.00019999,2]
[387168905,1758603051414,-400.0,0.00019999,2]
[387168906,1758603051425,-400.0,0.00019999,2]
[387168907,1758603051434,-400.0,0.00019999,2]
[387168908,1758603051443,-400.0,0.00019999,2]
[387168909,1758603051452,-400.0,0.00019999,2]
[387168910,1758603051461,-400.0,0.00019999,2]
[387168911,1758603051470,-400.0,0.00019999,2]
[387168912,1758603051478,-200.0,0.00019999,2]
[387168913,1758603051487,-400.0,0.00019999,2]
[387168914,1758603051496,-400.0,0.00019999,2]
[387168915,1758603051506,-400.0,0.00019999,2]
[387168916,1758603051515,-400.0,0.00019999,2]
[387168917,1758603051528,-400.0,0.00019999,2]
[387168918,1758603051537,-400.0,0.00019999,2]
[387168919,1758603051546,-400.0,0.00019999,2]
[387168920,1758603051556,-400.0,0.00019999,2]
[387168921,1758603051565,-400.0,0.00019999,2]
[387168922,1758603051574,-400.0,0.00019999,2]
[387168923,1758603051583,-400.0,0.00019999,2]
[387168924,1758603051593,-400.0,0.00019999,2]
[387168925,1758603051602,-779.06,0.00019999,2]
[387168926,1758603051612,-400.0,0.00019999,2]
[387168927,1758603051621,-400.0,0.00019999,2]
[387168928,1758603051631,-418.0986546,0.00019999,2]
[387168929,1758603051639,-400.0,0.00019999,2]
[387168930,1758603051649,-400.0,0.00019999,2]
[387168931,1758603051658,-288.10606858,0.00019999,2]
[387168932,1758603051667,-400.0,0.00019999,2]
[387168933,1758603051677,-400.0,0.00019999,2]
[387168934,1758603051686,-400.0,0.00019999,2]
[387168935,1758603051695,-400.0,0.00019999,2]
[387168936,1758603051704,-400.0,0.00019999,2]
[387168937,1758603051714,-430.17,0.00019999,2]
[387168938,1758603051723,-400.0,0.00019999,2]
[387168939,1758603051732,-400.0,0.00019999,2]
[387168940,1758603051743,-490.64,0.00019999,2]
[387168941,1758603051753,-400.0,0.00019999,2]
[387168942,1758603051764,-400.0,0.00019999,2]
[387168943,1758603051773,-400.0,0.00019999,2]
[387168944,1758603051784,-400.0,0.00019999,2]
[387168945,1758603051793,-441.81,0.00019999,2]
[387168946,1758603051802,-1668.25,0.00019999,2]
[387168947,1758603051814,-401.18872086,0.00019999,2]
[387168948,1758603051824,-400.0,0.00019999,2]
[387168949,1758603051834,-409.01252941,0.00019999,2]
[387168950,1758603051844,-400.0,0.00019999,2]
[387168951,1758603051856,-400.0,0.00019999,2]
[387168952,1758603051865,-400.0,0.00019999,2]
[387168953,1758603051875,-400.0,0.00019999,2]
[387168954,1758603051885,-400.0,0.00019999,2]
[387168955,1758603051894,-475.0,0.00019999,2]
[387168956,1758603051904,-400.0,0.00019999,2]
[387168957,1758603051913,-400.0,0.00019999,2]
[387168958,1758603051924,-400.0,0.00019999,2]
[387168959,1758603051933,-400.0,0.00019999,2]
[387168960,1758603051942,-459.9367731,0.00019999,2]
[387168961,1758603051952,-609.77,0.00019999,2]
[387168962,1758603051961,-402.73299875,0.00019999,2]
[387168963,1758603051971,-400.0,0.00019999,2]
[387168964,1758603051980,-400.0,0.00019999,2]
[387168965,1758603051990,-699.93,0.00019999,2]
[387168966,1758603052000,-178.70182519,0.00019999,2]
[387168967,1758603052010,-400.0,0.00019999,2]
[387168968,1758603052019,-400.0,0.00019999,2]
[387168969,1758603052029,-400.0,0.00019999,2]
[387168970,1758603052039,-533.87,0.00019999,2]
[387168971,1758603052048,-400.0,0.00019999,2]
[387168972,1758603052058,-400.0,0.00019999,2]
[387168973,1758603052067,-403.62585298,0.00019999,2]
[387168974,1758603052076,-400.0,0.00019999,2]
[387168975,1758603052086,-400.0,0.00019999,2]
[387168976,1758603052095,-400.0,0.00019999,2]
[387168977,1758603052105,-400.0,0.00019999,2]
[387168978,1758603052115,-400.0,0.00019999,2]
[387168979,1758603052124,-400.0,0.00019999,2]
[387168980,1758603052134,-443.88,0.00019999,2]
[387168981,1758603052143,-429.35,0.00019999,2]
[387168982,1758603052153,-400.0,0.00019999,2]
[387168983,1758603052162,-400.0,0.00019999,2]
[387168984,1758603052172,-400.0,0.00019999,2]
[387168985,1758603052182,-400.0,0.00019999,2]
[387168986,1758603052192,-1158.86,0.00019999,2]
[387168987,1758603052201,-1158.86,0.00019999,2]
[387168988,1758603052211,-1158.86,0.00019999,2]
[387168989,1758603052221,-1158.86,0.00019999,2]
[387168990,1758603052232,-1158.86,0.00019999,2]
[387168991,1758603052242,-1158.86,0.00019999,2]
[387168992,1758603052251,-1158.86,0.00019999,2]
[387168993,1758603052261,-1158.86,0.00019999,2]
[387168994,1758603052270,-400.0,0.00019999,2]
[387168995,1758603052280,-618.82,0.00019999,2]
[387168996,1758603052291,-400.0,0.00019999,2]
[387168997,1758603052301,-400.0,0.00019999,2]
[387168998,1758603052311,-320.23,0.00019999,2]
[387168999,1758603052322,-400.0,0.00019999,2]
[387169000,1758603052331,-400.0,0.00019999,2]
[387169001,1758603052341,-569.54,0.00019999,2]
[387169002,1758603052351,-400.0,0.00019999,2]
[387169003,1758603052360,-513.0,0.00019999,2]
[387169004,1758603052369,-173.63575119,0.00019999,2]
[387169005,1758603052763,-226.36424881,0.00019999,2]
[387169006,1758603052773,-400.0,0.00019999,2]
[387169007,1758603052783,-494.97,0.00019999,2]
[387169008,1758603052795,-400.0,0.00019999,2]
[387169009,1758603052806,-400.0,0.00019999,2]
[387169010,1758603052816,-448.22,0.00019999,2]
[387169011,1758603052827,-565.40575127,0.00019999,2]
[387169012,1758603052914,-1191.9,0.00019999,2]
[387169013,1758603052926,-645.60003344,0.00019999,2]
[387169014,1758603052990,-439.74,0.00019997,2]
[387169015,1758603053004,-3272.41421529,0.00019999,2]
[387169016,1758603053013,-500.0,0.00019999,2]
[387169017,1758603053023,-500.0,0.00019999,2]
[387169018,1758603053033,-500.0,0.00019999,2]
[387169019,1758603053043,-500.0,0.00019999,2]
[387169020,1758603053053,-400.0,0.00019999,2]
[387169021,1758603053064,-400.0,0.00019999,2]
[387169022,1758603053074,-400.0,0.00019999,2]
[387169023,1758603053084,-400.0,0.00019999,2]
[387169024,1758603053094,-400.0,0.00019999,2]
[387169025,1758603053104,-667.94,0.00019999,2]
[387169026,1758603053113,-400.0,0.00019999,2]
[387169027,1758603053123,-500.0,0.00019999,2]
[387169028,1758603053133,-400.0,0.00019999,2]
[387169029,1758603053142,-500.0,0.00019999,2]
[387169030,1758603053152,-742.6,0.00019999,2]
[387169031,1758603053161,-500.0,0.00019999,2]
[387169032,1758603053171,-500.0,0.00019999,2]
[387169033,1758603053180,-400.0,0.00019999,2]
[387169034,1758603053190,-549.25,0.00019999,2]
[387169035,1758603053199,-821.39,0.00019999,2]
[387169036,1758603053209,-769.84,0.00019999,2]
[387169037,1758603053218,-769.84,0.00019999,2]
[387169038,1758603053227,-863.63,0.00019999,2]
[387169039,1758603053236,-500.0,0.00019999,2]
[387169040,1758603053249,-281.98585989,0.00019999,2]
[387169041,1758603053258,-503.48,0.00019999,2]
[387169042,1758603053267,-503.48,0.00019999,2]
[387169043,1758603053276,-613.2277016,0.00019999,2]
[387169044,1758603053286,-468.86920033,0.00019999,2]
[387169045,1758603053296,-38487.31369359,0.0002,2]
[387169046,1758603053308,-500.0,0.0002,2]
[387169047,1758603053797,-400.0,0.00019997,2]
[387169048,1758603053809,-3.09871949,0.00019998,2]
[387169049,1758603053826,-396.90128051,0.00019998,2]
[387169050,1758603053837,-60275.59981734,0.0002,2]
[387169051,1758603053854,-104648.0927742,0.0002,2]
[387169052,1758603053864,-3151.93787407,0.0002,5]
[387169053,1758603053874,-7773.17559074,0.0002,2]
[387169054,1758603053884,-1000.0,0.0002,2]
[387169055,1758603053894,-2210.4385497,0.0002,2]
[387169056,1758603053903,-2565.0,0.0002,2]
[387169057,1758603053913,-1000.0,0.0002,2]
[387169058,1758603053922,-1000.0,0.0002,2]
[387169059,1758603053932,-1000.0,0.0002,2]
[387169060,1758603053941,-925.0,0.0002,3]
[387169061,1758603053951,-1000.0,0.0002,3]
[387169062,1758603053961,-1000.0,0.0002,3]
[387169063,1758603053971,-1000.0,0.0002,2]
[387169064,1758603053981,-1000.0,0.0002,2]
[387169065,1758603053991,-208342.92766,0.0002,2]
[387169066,1758603054003,-1000.0,0.0002,2]
[387169067,1758603054013,-1311.0,0.0002,2]
[387169068,1758603054023,-1000.0,0.0002,2]
[387169069,1758603054032,-1000.0,0.0002,3]
[387169070,1758603054042,-435.0,0.0002,3]
[387169071,1758603054052,-1000.0,0.0002,2]
[387169072,1758603054061,-150.0,0.0002,2]
[387169073,1758603054071,-150.75,0.0002,2]
[387169074,1758603054081,-160.49,0.0002,2]
[387169075,1758603054093,-1000.0,0.0002,2]
[387169076,1758603054103,-157.9411924,0.0002,2]
[387169077,1758603054114,-1000.0,0.0002,2]
[387169078,1758603054124,-27379.191417,0.0002,2]
[387169079,1758603054133,-1000.0,0.0002,2]
[387169080,1758603054142,-233.87203,0.0002,2]
[387169081,1758603054152,-233.87204,0.0002,2]
[387169082,1758603054162,-233.87203,0.0002,2]
[387169083,1758603054172,-233.87204,0.0002,2]
[387169084,1758603054182,-150.0,0.00020062,4]
[387169085,1758603054192,-1010.92845668,0.00020072,2]
[387169086,1758603054201,-409.59743469,0.00020091,2]
[387169087,1758603054212,-500.0,0.00020101,7]
[387169088,1758603054222,-500.0,0.00020101,7]
[387169089,1758603054233,-500.0,0.00020101,7]
[387169090,1758603054245,-500.0,0.00020101,7]
[387169091,1758603054254,-500.0,0.00020101,7]
[387169092,1758603054264,-500.0,0.00020101,7]
[387169093,1758603054276,-500.0,0.00020101,7]
[387169094,1758603054288,-500.0,0.00020101,7]
[387169095,1758603054297,-500.0,0.00020101,7]
[387169096,1758603054307,-500.0,0.00020101,7]
[387169097,1758603054316,-500.0,0.00020101,7]
[387169098,1758603054325,-500.0,0.00020101,7]
[387169099,1758603054335,-500.0,0.00020101,7]
[387169100,1758603054344,-500.0,0.00020101,7]
[387169101,1758603054353,-500.0,0.00020101,7]
[387169102,1758603054363,-500.0,0.00020101,7]
[387169103,1758603054372,-500.0,0.00020101,7]
[387169104,1758603054383,-500.0,0.00020101,7]
[387169105,1758603054392,-500.0,0.00020101,7]
[387169106,1758603054402,-500.0,0.00020101,7]
[387169107,1758603054412,-500.0,0.00020101,7]
[387169108,1758603054422,-505.59,0.00020101,7]
[387169109,1758603054431,-516.64379166,0.00020101,7]
[387169110,1758603054440,-500.0,0.00020101,7]
[387169111,1758603054450,-500.0,0.00020101,7]
[387169112,1758603054459,-500.0,0.00020101,7]
[387169113,1758603054469,-500.0,0.00020101,7]
[387169114,1758603054479,-500.0,0.00020101,7]
[387169115,1758603054490,-500.0,0.00020101,7]
[387169116,1758603054500,-500.0,0.00020101,7]
[387169117,1758603054510,-500.0,0.00020101,7]
[387169118,1758603054523,-500.0,0.00020101,7]
[387169119,1758603054533,-500.0,0.00020101,7]
[387169120,1758603054543,-150.0,0.00020123,4]
[387169121,1758603054552,-500.0,0.00020144,2]
[387169122,1758603054562,-150.0,0.00020157,4]
[387169123,1758603054572,-168.0,0.00020166,2]
[387169124,1758603054582,-358.4372,0.00020199,2]
[387169125,1758603054592,-7689.88384794,0.00020203,2]
[387169126,1758603054602,-679.74,0.00020247,2]
[387169127,1758603054611,-500.0,0.0002025,2]
[387169128,1758603054620,-500.0,0.0002025,2]
[387169129,1758603054630,-769.84,0.0002025,2]
[387169130,1758603054639,-500.0,0.00020251,2]
[387169131,1758603054648,-500.0,0.00020251,2]
[387169132,1758603054658,-1158.86,0.00020251,2]
[387169133,1758603054668,-400.0,0.00020252,2]
[387169134,1758603054677,-401.94339343,0.00020252,2]
[387169135,1758603054687,-400.95585782,0.00020252,2]
[387169136,1758603054696,-406.26850782,0.00020252,2]
[387169137,1758603054706,-400.0,0.00020252,2]
[387169138,1758603054716,-400.0,0.00020252,2]
[387169139,1758603054726,-541.12888031,0.00020252,2]
[387169140,1758603054735,-417.45756673,0.00020252,2]
[387169141,1758603054745,-400.79019276,0.00020252,2]
[387169142,1758603054755,-400.0,0.00020252,2]
[387169143,1758603054764,-400.0,0.00020252,2]
[387169144,1758603054774,-400.0,0.00020252,2]
[387169145,1758603054784,-400.63370981,0.00020252,2]
[387169146,1758603054794,-400.0,0.00020252,2]
[387169147,1758603054804,-400.0,0.00020252,2]
[387169148,1758603054814,-400.0,0.00020252,2]
[387169149,1758603054825,-409.80165615,0.00020252,2]
[387169150,1758603054834,-418.30116137,0.00020252,2]
[387169151,1758603054844,-400.0,0.00020252,2]
[387169152,1758603054854,-403.59576811,0.00020252,2]
[387169153,1758603054864,-400.0,0.00020252,2]
[387169154,1758603054876,-400.0,0.00020252,2]
[387169155,1758603054885,-401.43415226,0.00020252,2]
[387169156,1758603054895,-400.0,0.00020252,2]
[387169157,1758603054905,-400.0,0.00020252,2]
[387169158,1758603054915,-400.0,0.00020252,2]
[387169159,1758603054925,-400.0,0.00020252,2]
[387169160,1758603054934,-400.0,0.00020252,2]
[387169161,1758603054944,-400.0,0.00020252,2]
[387169162,1758603054953,-402.4168927,0.00020252,2]
[387169163,1758603054964,-404.05470622,0.00020252,2]
[387169164,1758603054974,-400.0,0.00020252,2]
[387169165,1758603054984,-400.0,0.00020252,2]
[387169166,1758603054994,-400.0,0.00020252,2]
[387169167,1758603055004,-400.92115182,0.00020252,2]
[387169168,1758603055013,-400.0,0.00020252,2]
[387169169,1758603055023,-602.39,0.00020252,2]
[387169170,1758603055033,-151.102309,0.00020252,2]
[387169171,1758603055044,-151.0,0.00020252,2]
[387169172,1758603055053,-151.0,0.00020252,2]
[387169173,1758603055064,-151.0,0.00020252,2]
[387169174,1758603055074,-151.0,0.00020252,2]
[387169175,1758603055084,-500.0,0.00020252,2]
[387169176,1758603055093,-152.882198,0.00020252,2]
[387169177,1758603055103,-500.0,0.00020252,2]
[387169178,1758603055112,-500.0,0.00020252,2]
[387169179,1758603055122,-602.39,0.00020253,2]
[387169180,1758603055131,-602.39,0.00020253,2]
[387169181,1758603055141,-602.39,0.00020253,2]
[387169182,1758603055151,-602.39,0.00020253,2]
[387169183,1758603055161,-602.39,0.00020253,2]
[387169184,1758603055171,-500.0,0.00020253,2]
[387169185,1758603055181,-500.0,0.00020253,2]
[387169186,1758603055191,-500.0,0.00020253,2]
[387169187,1758603055203,-500.0,0.00020253,2]
[387169188,1758603055455,-407.52984197,0.00020253,2]
[387169189,1758603055474,-92.47015803,0.00020253,2]
[387169190,1758603055495,-208.54536959,0.00020253,2]
[387169191,1758603055564,-291.45463041,0.00020253,2]
[387169192,1758603055574,-500.0,0.00020253,2]
[387169193,1758603055584,-47.69536959,0.00020253,2]
[387169194,1758603055597,-452.30463041,0.00020253,2]
[387169195,1758603055607,-39.11933953,0.00020253,2]
[387169196,1758603055619,-460.88066047,0.00020253,2]
[387169197,1758603055629,-500.0,0.00020253,2]
[387169198,1758603055639,-151.0,0.00020253,2]
[387169199,1758603055648,-1158.86,0.00020253,2]
[387169200,1758603055658,-344.51933953,0.00020253,2]
[387169201,1758603056251,-400.0,0.00019997,2]
[387169202,1758603056261,-400.0,0.00019998,2]
[387169203,1758603056271,-402.06185058,0.00019998,2]
[387169204,1758603056281,-814.34066047,0.00020253,2]
[387169205,1758603056290,-500.0,0.00020253,2]
[387169206,1758603056300,-500.0,0.00020253,2]
[387169207,1758603056310,-500.0,0.00020253,2]
[387169208,1758603056321,-500.0,0.00020253,2]
[387169209,1758603056330,-769.84,0.00020253,2]
[387169210,1758603056340,-769.84,0.00020253,2]
[387169211,1758603056350,-503.48,0.00020253,2]
[387169212,1758603056359,-3090.43753895,0.00020254,2]
[387169213,1758603056371,-3536.4,0.00020254,2]
[387169214,1758603057080,-168.202273,0.00019997,2]
[387169215,1758603057090,-400.0,0.00019997,2]
[387169216,1758603057099,-400.0,0.00019997,2]
[387169217,1758603057109,-403.15029122,0.00019998,2]
[387169218,1758603057119,-511.15,0.00019998,2]
[387169219,1758603057130,-400.0,0.00019998,2]
[387169220,1758603057140,-982.95190727,0.00020254,2]
[387169221,1758603057152,-482.84900426,0.00020254,2]
[387169222,1758603057164,-327.410967,0.00020254,2]
[387169223,1758603057175,-399.58788103,0.00020254,2]
[387169224,1758603057187,-6896.34478913,0.00020254,2]
[387169225,1758603057198,-44003.4780667,0.00020254,2]
[387169226,1758603057221,-400.0,0.00019997,2]
[387169227,1758603057231,-1343.0,0.00020254,2]
[387169228,1758603057242,-293.18020211,0.00020254,2]
[387169229,1758603117013,500.0,0.00013699,2]
[387169230,1758603319416,151.09,9.596e-05,2]
[387169231,1758603335632,717.0,0.00030137,120]
[387169232,1758603363130,-5000000.0,0.00035142,30]
[387169236,1758604231859,-196.54,0.00018958,2]
[387169254,1758604232372,-133.82601385,0.00019054,2]
[387169255,1758604232398,-177.44709038,0.00019054,2]
[387169256,1758604232407,-202.16,0.00019151,2]
[387169258,1758604232418,-344.15095493,0.00019188,2]
[387169260,1758604232428,-560.0,0.00019209,3]
[387169262,1758604232438,-1378.76,0.00019298,2]
[387169264,1758604232448,-168.0,0.00019325,2]
[387169266,1758604232458,-168.0,0.00019329,2]
[387169268,1758604232468,-168.0,0.00019333,2]
[387169270,1758604232477,-168.0,0.00019368,2]
[387169272,1758604232487,-168.0,0.00019369,2]
[387169274,1758604232497,-168.0,0.00019396,2]
[387169276,1758604232507,-150.99,0.00019396,2]
[387169278,1758604232517,-999.99,0.00019396,2]
[387169279,1758604232527,-168.0,0.00019548,2]
[387169280,1758604232536,-1200.0,0.00019573,2]
[387169281,1758604232546,-765.57511476,0.00019574,2]
[387169282,1758604232556,-301.75,0.000196,2]
[387169283,1758604232566,-168.0,0.00019705,2]
[387169284,1758604232576,-168.0,0.00019785,2]
[387169285,1758604232586,-168.0,0.00019788,2]
[387169286,1758604232607,-300.0,0.00019816,2]
[387169287,1758604232626,-4833.0,0.00019818,2]
[387169288,1758604232636,-5000.0,0.00019897,2]
[387169289,1758604232646,-8151.05597251,0.00019897,2]
[387169290,1758604232656,-173.58559623,0.00019898,2]
[387169291,1758604232666,-168.0,0.00019902,2]
[387169292,1758604232676,-168.0,0.00019903,2]
[387169293,1758604232686,-248.71531821,0.00019914,2]
[387169294,1758604232695,-150.0,0.00019948,2]
[387169295,1758604232705,-150.0,0.00019948,2]
[387169296,1758604232715,-150.0,0.00019948,2]
[387169297,1758604232724,-150.0,0.00019948,2]
[387169298,1758604232734,-150.0,0.00019948,2]
[387169299,1758604232744,-150.0,0.00019948,2]
[387169300,1758604232753,-150.0,0.00019948,2]
[387169301,1758604232763,-150.0,0.00019948,2]
[387169302,1758604232773,-4833.0,0.00019954,2]
[387169303,1758604232782,-168.0,0.00019964,2]
[387169304,1758604232791,-501.98615172,0.00019973,2]
[387169305,1758604232801,-500.0,0.00019973,2]
[387169306,1758604232811,-500.0,0.00019973,2]
[387169307,1758604232820,-500.49275271,0.00019973,2]
[387169308,1758604232829,-433.63079691,0.00019973,2]
[387169309,1758604232838,-500.0,0.00019973,2]
[387169310,1758604232847,-503.10082397,0.00019973,2]
[387169311,1758604232857,-501.49571809,0.00019973,2]
[387169312,1758604232867,-368.36198039,0.00019973,2]
[387169313,1758604232877,-168.0,0.00019988,2]
[387169314,1758604232886,-400.0,0.00019996,2]
[387169315,1758604232902,-400.0,0.00019996,2]
[387169316,1758604232912,-176.25428195,0.00019996,2]
[387169317,1758604232923,-400.0,0.00019996,2]
[387169318,1758604232933,-400.0,0.00019996,2]
[387169319,1758604232943,-400.0,0.00019996,2]
[387169320,1758604232952,-400.0,0.00019996,2]
[387169321,1758604232961,-280.20444131,0.00019996,2]
[387169322,1758604232971,-400.0,0.00019996,2]
[387169323,1758604232981,-400.0,0.00019996,2]
[387169324,1758604232990,-432.57,0.00019996,2]
[387169325,1758604232999,-400.0,0.00019996,2]
[387169326,1758604233009,-400.0,0.00019996,2]
[387169327,1758604233018,-400.0,0.00019996,2]
[387169328,1758604233028,-400.0,0.00019996,2]
[387169329,1758604233037,-400.0,0.00019996,2]
[387169330,1758604233048,-381.13924428,0.00019996,2]
[387169331,1758604233057,-400.0,0.00019996,2]
[387169332,1758604233068,-400.0,0.00019996,2]
[387169333,1758604233079,-400.0,0.00019996,2]
[387169334,1758604233088,-400.0,0.00019996,2]
[387169335,1758604233098,-400.0,0.00019996,2]
[387169336,1758604233108,-400.0,0.00019996,2]
[387169337,1758604233118,-400.0,0.00019996,2]
[387169338,1758604233128,-405.40506452,0.00019996,2]
[387169339,1758604233138,-400.0,0.00019996,2]
[387169340,1758604233148,-400.0,0.00019996,2]
[387169341,1758604233158,-400.0,0.00019996,2]
[387169342,1758604233168,-400.0,0.00019996,2]
[387169343,1758604233178,-400.0,0.00019996,2]
[387169344,1758604233187,-400.0,0.00019996,2]
[387169345,1758604233197,-516.98,0.00019996,2]
[387169346,1758604233207,-400.0,0.00019996,2]
[387169347,1758604233217,-258.693374,0.00019996,2]
[387169348,1758604233226,-168.202273,0.00019996,2]
[387169349,1758604233236,-400.0,0.00019996,2]
[387169350,1758604233245,-400.0,0.00019996,2]
[387169351,1758604233255,-157.149465,0.00019996,2]
[387169352,1758604233266,-400.0,0.00019996,2]
[387169353,1758604233275,-437.05,0.00019996,2]
[387169354,1758604233286,-400.0,0.00019996,2]
[387169355,1758604233295,-400.0,0.00019996,2]
[387169356,1758604233305,-400.0,0.00019996,2]
[387169357,1758604233315,-602.76,0.00019996,2]
[387169358,1758604233325,-568.17,0.00019996,2]
[387169359,1758604233335,-400.0,0.00019996,2]
[387169360,1758604233345,-400.0,0.00019996,2]
[387169361,1758604233355,-1709.33,0.00019996,2]
[387169362,1758604233365,-400.0,0.00019996,2]
[387169363,1758604233375,-400.0,0.00019996,2]
[387169364,1758604233385,-693.81,0.00019996,2]
[387169365,1758604233395,-400.0,0.00019996,2]
[387169366,1758604233404,-400.0,0.00019996,2]
[387169367,1758604233413,-412.8,0.00019996,2]
[387169368,1758604233423,-400.0,0.00019996,2]
[387169369,1758604233434,-680.92,0.00019996,2]
[387169370,1758604233443,-400.0,0.00019996,2]
[387169371,1758604233453,-400.0,0.00019996,2]
[387169372,1758604233464,-400.0,0.00019996,2]
[387169373,1758604233474,-400.0,0.00019996,2]
[387169374,1758604233483,-400.0,0.00019996,2]
[387169375,1758604233493,-406.01,0.00019996,2]
[387169376,1758604233502,-400.0,0.00019996,2]
[387169377,1758604233512,-714.46,0.00019996,2]
[387169378,1758604233521,-400.0,0.00019996,2]
[387169379,1758604233531,-400.0,0.00019996,2]
[387169380,1758604233541,-400.0,0.00019996,2]
[387169381,1758604233551,-400.0,0.00019996,2]
[387169382,1758604233560,-404.76362441,0.00019996,2]
[387169383,1758604233570,-400.0,0.00019996,2]
[387169384,1758604233580,-400.0,0.00019996,2]
[387169385,1758604233590,-400.0,0.00019996,2]
[387169386,1758604233600,-400.0,0.00019996,2]
[387169387,1758604233610,-465.92,0.00019996,2]
[387169388,1758604233620,-400.0,0.00019996,2]
[387169389,1758604233630,-554.83,0.00019996,2]
[387169390,1758604233640,-777.58,0.00019996,2]
[387169391,1758604233650,-400.0,0.00019996,2]
[387169392,1758604233659,-671.78,0.00019996,2]
[387169393,1758604233670,-157.71,0.00019996,2]
[387169394,1758604233679,-400.0,0.00019996,2]
[387169395,1758604233689,-400.0,0.00019996,2]
[387169396,1758604233699,-760.39,0.00019996,2]
[387169397,1758604233708,-400.0,0.00019996,2]
[387169398,1758604233724,-430.31,0.00019996,2]
[387169399,1758604233736,-2324.98,0.00019996,2]
[387169400,1758604233746,-400.0,0.00019996,2]
[387169401,1758604233756,-400.0,0.00019996,2]
[387169402,1758604233765,-400.0,0.00019996,2]
[387169403,1758604233775,-506.95839539,0.00019996,2]
[387169404,1758604233785,-961.45,0.00019996,2]
[387169405,1758604233795,-419.22,0.00019996,2]
[387169406,1758604233806,-560.54845364,0.00019996,2]
[387169407,1758604234200,-4.80154636,0.00019996,2]
[387169408,1758604234210,-441.76988037,0.00019996,2]
[387169409,1758604234235,-73.19011963,0.00019996,2]
[387169410,1758604234244,-406.75436762,0.00019996,2]
[387169411,1758604234254,-402.92588695,0.00019996,2]
[387169412,1758604234263,-400.0,0.00019996,2]
[387169413,1758604234273,-400.0,0.00019996,2]
[387169414,1758604234282,-837.08,0.00019996,2]
[387169415,1758604234292,-400.0,0.00019996,2]
[387169416,1758604234301,-770.33,0.00019996,2]
[387169417,1758604234311,-400.0,0.00019996,2]
[387169418,1758604234320,-400.0,0.00019996,2]
[387169419,1758604234330,-585.35,0.00019996,2]
[387169420,1758604234339,-759.86,0.00019996,2]
[387169421,1758604234349,-500.0,0.00019996,2]